bitfinex/quotes_SOLUSD_20260113
["timestamp","ask_amount","ask_price","bid_price","bid_amount"]
[1768345423049,0.65823096,147.12,147.07,7.59866984]
[1768345423361,0.65823096,147.12,147.09,7.59866984]
[1768345423542,0.65823096,147.12,147.05,12.34]
[1768345423860,0.65823096,147.12,147.09,7.59866984]
[1768345424159,0.65823096,147.14,147.1,6.79809653]
[1768345424340,0.65823096,147.16,147.11,7.59866984]
[1768345425075,7.45374723,147.16,147.1,14.39676637]
[1768345425239,0.65823096,147.15,147.1,7.59866984]
[1768345425434,0.65823096,147.17,147.11,7.59866984]
[1768345425635,0.65823096,147.17,147.09,23.79487494]
[1768345425853,7.59866984,147.1,147.0,5.66916236]
[1768345426055,0.65823096,147.07,146.99,0.2]
[1768345426258,7.45773703,147.07,147.0,6.80272108]
[1768345426443,15.05640687,147.07,147.0,14.40139092]
[1768345426648,15.05640687,147.07,147.0,6.80272108]
[1768345426951,0.65823096,147.06,147.0,31.40819364]
[1768345427157,0.65823096,147.06,147.01,7.59866984]
[1768345427459,0.65823096,147.08,147.02,12.35559802]
[1768345427759,0.65823096,147.08,147.01,12.35559802]
[1768345427760,0.65823096,147.07,147.01,12.35559802]
[1768345428136,0.65823096,147.09,147.03,19.15693108]
[1768345428440,0.65823096,147.11,147.06,12.35559802]
[1768345428949,0.65823096,147.11,147.07,12.35559802]
[1768345429259,0.65823096,147.11,147.06,19.15524284]
[1768345430558,0.65823096,147.11,147.01,12.34]
[1768345430559,0.65823096,147.06,147.01,12.34]
[1768345431448,0.65823096,147.06,147.01,6.8021535]
[1768345431749,0.65823096,147.06,147.0,6.802698]
[1768345431750,0.65823096,147.05,147.0,6.802698]
[1768345431955,0.65823096,147.03,146.99,0.2]
[1768345432168,0.65823096,147.01,146.99,0.2]
[1768345432466,0.65823096,147.0,146.99,1e-08]
[1768345433351,0.65823096,146.98,146.95,0.2]
[1768345434058,0.65823096,147.0,146.95,0.2]
[1768345434649,0.65823096,147.03,146.96,12.35559802]
[1768345434852,0.65823096,147.02,146.96,20.60644189]
[1768345435056,0.65823096,147.02,146.95,7.00467269]
[1768345435250,12.36,147.04,146.96,20.60644189]
[1768345435251,0.65823096,147.0,146.96,20.60644189]
[1768345435549,0.65823096,146.99,146.95,0.2]
[1768345435750,0.65823096,146.99,146.95,27.61138154]
[1768345435958,0.65823096,147.02,146.95,7.00493965]
[1768345436172,0.65823096,147.02,146.97,20.60644189]
[1768345436473,0.65823096,147.0,146.95,7.00493965]
[1768345436679,0.65823096,146.98,146.95,0.2]
[1768345438079,0.65823096,146.98,146.95,6.8801107]
[1768345438263,0.65823096,147.0,146.95,27.61140418]
[1768345438648,0.65823096,147.0,146.95,20.80644189]
[1768345438849,0.65823096,147.0,146.95,0.2]
[1768345439573,0.65823096,146.99,146.95,0.2]
[1768345439866,0.65823096,146.99,146.95,27.61139077]
[1768345440111,0.65823096,146.99,146.95,0.2]
[1768345440460,0.65823096,146.98,146.95,0.2]
[1768345441768,0.65823096,146.97,146.95,0.2]
[1768345442271,0.65823096,146.97,146.92,20.60644189]
[1768345442952,0.65823096,146.97,146.93,20.60644189]
[1768345443152,0.65823096,146.97,146.94,27.41153662]
[1768345443475,0.65823096,147.0,146.95,6.80501617]
[1768345443877,0.65823096,147.02,146.98,20.60644189]
[1768345444175,0.65823096,147.02,146.97,20.60644189]
[1768345444380,0.65823096,147.02,146.96,20.60644189]
[1768345444579,0.65823096,147.02,146.99,20.60644189]
[1768345444762,0.65823096,147.02,146.95,19.36501617]
[1768345444763,0.65823096,147.04,147.0,20.60644189]
[1768345444963,0.66969238,147.06,147.02,20.60644189]
[1768345445157,0.66969238,147.06,147.01,20.60644189]
[1768345445376,0.66969238,147.06,147.03,20.60644189]
[1768345445776,0.66969238,147.06,147.02,20.60644189]
[1768345446158,33.98772917,147.12,147.02,20.60644189]
[1768345446159,0.66969238,147.08,147.04,20.60644189]
[1768345446462,0.66969238,147.09,147.03,20.60644189]
[1768345446670,0.66969238,147.08,147.01,6.80213195]
[1768345446879,0.66969238,147.07,147.01,27.40857384]
[1768345447378,7.46837755,147.09,147.04,20.60644189]
[1768345447575,0.66969238,147.08,147.03,20.60644189]
[1768345447782,0.66969238,147.08,147.02,20.60644189]
[1768345447967,0.66969238,147.03,146.96,6.80450718]
[1768345448163,0.66969238,147.03,146.98,6.80358631]
[1768345448577,0.66969238,147.03,146.99,6.80300623]
[1768345448877,0.66969238,147.06,147.0,27.40892291]
[1768345449381,0.66969238,147.06,146.99,27.40959227]
[1768345449382,0.66969238,147.04,146.99,27.40959227]
[1768345451564,0.66969238,147.04,147.0,20.60644189]
[1768345452186,7.47062903,147.04,146.99,27.40959227]
[1768345452576,0.66969238,147.04,146.99,27.40959227]
[1768345453485,0.66969238,147.04,146.99,27.40320413]
[1768345454585,0.66969238,147.06,147.02,20.60005375]
[1768345455276,0.66969238,147.06,147.03,20.60005375]
[1768345455582,0.66969238,147.06,147.02,20.60005375]
[1768345455781,19.82875239,147.08,147.03,20.60005375]
[1768345455981,7.46798083,147.1,147.04,6.80072176]
[1768345456179,7.46798083,147.1,147.05,20.60005375]
[1768345456381,0.66969238,147.09,147.01,12.56]
[1768345456584,0.66969238,147.09,147.03,20.60005375]
[1768345457366,0.70765896,147.06,146.98,17.00862356]
[1768345457566,0.70765896,147.05,146.99,20.60005375]
[1768345457781,0.70765896,147.05,147.0,6.80265872]
[1768345458091,0.70765896,147.05,147.0,27.40271247]
[1768345458280,0.70765896,147.07,147.02,20.60005375]
[1768345459493,0.70765896,147.08,147.04,20.60005375]
[1768345460090,0.70765896,147.12,147.07,20.60005375]
[1768345460294,0.70765896,147.12,147.08,20.60005375]
[1768345460462,0.70765896,147.12,147.07,20.60005375]
[1768345460797,0.70765896,147.12,147.05,0.2]
[1768345460798,0.70765896,147.12,147.08,20.60005375]
[1768345461491,0.70765896,147.12,147.08,27.39901547]
[1768345462079,0.70765896,147.12,147.08,20.60005375]
[1768345463598,7.50483724,147.12,147.08,20.60005375]
[1768345463797,7.50483724,147.12,147.06,6.79979928]
[1768345463967,0.70765896,147.12,147.08,27.39905635]
[1768345464674,0.70765896,147.12,147.05,29.56045615]
[1768345465018,7.50499479,147.12,147.07,20.60005375]
[1768345465483,0.70765896,147.11,147.06,27.39970001]
[1768345465797,0.70765896,147.11,147.07,27.39953028]
[1768345465979,0.70765896,147.11,147.08,20.60005375]
[1768345466373,0.70765896,147.11,147.07,27.39953028]
[1768345466574,50.05019218,147.15,147.1,20.60005375]
[1768345466575,0.70765896,147.13,147.1,20.60005375]
[1768345466787,0.80765896,147.15,147.11,20.54546335]
[1768345467095,0.70765896,147.14,147.09,20.60005375]
[1768345467297,0.70765896,147.14,147.08,20.60005375]
[1768345467507,7.50436935,147.13,147.08,20.60005375]
[1768345467678,7.50436935,147.13,147.07,6.79947653]
[1768345467885,7.50436935,147.13,147.08,20.60005375]
[1768345468072,0.70765896,147.12,147.05,20.60005375]
[1768345468275,0.70765896,147.12,147.04,20.60005375]
[1768345468276,0.70765896,147.11,147.04,20.60005375]
[1768345468511,0.70765896,147.1,147.03,32.96005375]
[1768345468796,0.70765896,147.1,147.03,39.76119501]
[1768345469201,0.70765896,147.1,147.05,6.80035416]
[1768345469988,0.70765896,147.09,147.03,32.96005375]
[1768345470187,0.70765896,147.09,147.03,19.16113604]
[1768345470383,0.70765896,147.08,147.02,20.60005375]
[1768345470886,0.70765896,147.09,147.03,27.40136616]
[1768345471194,0.70765896,147.09,147.04,20.60005375]
[1768345471391,0.70765896,147.11,147.08,20.60005375]
[1768345471575,20.60005375,147.19,147.11,0.66858429]
[1768345471778,6.79565942,147.16,147.11,21.26863804]
[1768345472389,12.36,147.19,147.12,20.60005375]
[1768345472606,12.36,147.19,147.13,20.60005375]
[1768345472804,12.36,147.19,147.13,20.54005379]
[1768345473188,37.5819382,147.22,147.14,0.66858429]
[1768345473395,49.9419382,147.22,147.14,21.26863804]
[1768345473699,0.70765896,147.21,147.14,21.26863804]
[1768345474006,0.70765896,147.2,147.14,21.26863804]
[1768345474188,0.70765896,147.2,147.14,28.06473191]
[1768345474385,13.06765896,147.22,147.16,20.60005375]
[1768345474589,13.06765896,147.22,147.17,20.60005375]
[1768345474774,13.06765896,147.22,147.16,20.60005375]
[1768345474979,13.06765896,147.22,147.17,20.60005375]
[1768345475603,111.71437517,147.24,147.18,20.60005375]
[1768345475806,0.72260126,147.23,147.18,20.60005375]
[1768345476003,6.79255535,147.22,147.17,21.30578664]
[1768345476302,0.72260126,147.23,147.17,21.30578664]
[1768345476482,0.72260126,147.22,147.16,6.79520809]
[1768345476802,0.72260126,147.22,147.15,0.70573289]
[1768345476803,0.72260126,147.22,147.17,20.60005375]
[1768345476999,0.72260126,147.22,147.15,0.70573289]
[1768345477202,0.72260126,147.22,147.15,21.30578664]
[1768345477504,0.72260126,147.22,147.15,28.10145893]
[1768345478506,0.72260126,147.22,147.16,21.30578664]
[1768345478807,1e-08,147.26,147.21,20.60005375]
[1768345479303,7.51336992,147.26,147.21,20.60005375]
[1768345479490,0.72260126,147.25,147.19,20.60005375]
[1768345479690,0.72260126,147.25,147.15,23.78513882]
[1768345479691,0.72260126,147.24,147.15,23.78513882]
[1768345479890,0.72260126,147.23,147.16,20.60005375]
[1768345480392,7.51481421,147.23,147.16,6.79486906]
[1768345480589,0.72260126,147.25,147.18,20.60005375]
[1768345480789,0.72260126,147.25,147.19,20.60005375]
[1768345481005,0.72260126,147.24,147.16,6.79486906]
[1768345481309,0.72260126,147.24,147.18,20.60005375]
[1768345481507,0.72260126,147.24,147.19,20.60005375]
[1768345481802,0.72260126,147.24,147.16,23.7831811]
[1768345482009,0.72260126,147.24,147.17,20.60005375]
[1768345482206,0.72260126,147.23,147.17,20.60005375]
[1768345482380,7.51515661,147.22,147.14,12.34]
[1768345482584,0.72260126,147.21,147.16,20.60005375]
[1768345483385,6.79224397,147.23,147.17,20.60005375]
[1768345483589,19.87484523,147.23,147.17,20.60005375]
[1768345483800,0.72260126,147.22,147.16,20.60005375]
[1768345484108,0.72260126,147.22,147.16,27.39529161]
[1768345484499,7.51516429,147.22,147.17,20.60005375]
[1768345486289,0.72260126,147.21,147.14,39.73627179]
[1768345486511,0.72260126,147.21,147.15,20.60005375]
[1768345486891,0.72260126,147.21,147.14,39.73594087]
[1768345487086,0.72260126,147.19,147.13,20.60005375]
[1768345487415,0.72260126,147.17,147.11,12.34]
[1768345487620,0.72260126,147.17,147.12,20.60005375]
[1768345487792,13.08260126,147.19,147.12,27.39685588]
[1768345487997,7.5167468,147.19,147.13,27.39666219]
[1768345488400,0.72260126,147.18,147.11,12.34]
[1768345488599,0.72260126,147.18,147.11,32.94005375]
[1768345488913,0.72260126,147.2,147.15,20.60005375]
[1768345489114,7.51530611,147.22,147.16,20.60005375]
[1768345489423,0.72260126,147.22,147.18,12.64687799]
[1768345489712,13.08260127,147.26,147.21,12.64687799]
[1768345489917,0.72260127,147.26,147.17,12.34]
[1768345490098,0.72260127,147.26,147.21,12.64687799]
[1768345490915,1e-08,147.26,147.22,12.64687799]
[1768345492099,0.1,147.27,147.2,12.34]
[1768345492100,1e-08,147.27,147.24,12.64687799]
[1768345492300,1e-08,147.27,147.25,12.64687799]
[1768345492607,1e-08,147.27,147.22,6.79240334]
[1768345493000,7.51295451,147.27,147.21,19.13294057]
[1768345493202,0.72260126,147.26,147.2,6.79317916]
[1768345493419,1e-08,147.27,147.2,29.62962022]
[1768345493714,0.72260126,147.26,147.2,6.7933053]
[1768345493916,0.72260126,147.26,147.19,24.98687799]
[1768345493917,13.36947925,147.26,147.21,6.79298485]
[1768345494122,0.72260126,147.23,147.12,33.98385348]
[1768345494307,0.72260126,147.22,147.15,12.64687799]
[1768345494814,13.36947925,147.24,147.18,6.79432148]
[1768345495814,0.72260126,147.23,147.18,6.79432148]
[1768345496005,0.72260126,147.23,147.17,6.79477356]
[1768345496202,20.16168906,147.23,147.17,6.79477356]
[1768345496616,13.36947925,147.23,147.17,6.79477356]
[1768345496921,13.36947925,147.22,147.17,6.79477356]
[1768345497726,0.72260126,147.22,147.17,6.79477356]
[1768345498526,0.72260126,147.22,147.16,6.79532481]
[1768345499301,12.64687799,147.21,147.16,6.79532481]
[1768345499626,13.36947925,147.21,147.16,6.79532481]
[1768345500421,13.36947925,147.18,147.11,28.88946516]
[1768345500625,0.72260126,147.15,147.11,16.54946516]
[1768345500826,12.64687799,147.12,147.11,16.54946516]
[1768345501220,0.72260126,147.11,147.05,19.14025101]
[1768345501416,0.72260126,147.15,147.06,6.79958817]
[1768345501724,13.36947925,147.12,147.06,6.79958817]
[1768345502724,13.36947925,147.12,147.06,23.79945217]
[1768345502899,0.72260126,147.15,147.06,30.47956287]
[1768345503104,0.72260126,147.15,147.09,12.64687799]
[1768345503301,13.36947925,147.17,147.09,12.64687799]
[1768345503918,0.72260126,147.19,147.09,12.64687799]
[1768345504116,0.72260126,147.19,147.13,12.64687799]
[1768345504316,19.44046047,147.2,147.13,12.64687799]
[1768345504317,12.64687799,147.2,147.13,12.64687799]
[1768345504626,12.64687799,147.2,147.06,91.45065161]
[1768345504627,0.72260126,147.22,147.16,6.79532481]
[1768345504824,6.79193179,147.24,147.16,23.78363685]
[1768345504825,0.72260126,147.24,147.16,23.78363685]
[1768345505021,0.72260126,147.24,147.17,12.64687799]
[1768345505508,0.72260126,147.24,147.18,12.64687799]
[1768345506026,13.36947925,147.24,147.18,12.64687799]
[1768345506227,7.51425971,147.24,147.18,12.64687799]
[1768345506727,7.51425971,147.24,147.18,19.44101102]
[1768345507809,7.51425971,147.24,147.16,12.34]
[1768345507810,0.72405104,147.22,147.16,12.34]
[1768345508012,13.37092903,147.21,147.16,12.34]
[1768345508633,12.64687799,147.19,147.04,33.83238444]
[1768345508806,0.72405104,147.16,147.03,39.6794528]
[1768345509129,0.72405104,147.14,147.07,12.64687799]
[1768345509322,0.72405104,147.16,147.1,12.64687799]
[1768345509522,0.72405104,147.16,147.09,12.64687799]
[1768345509717,0.72405104,147.16,147.1,6.79809653]
[1768345510111,0.72405104,147.16,147.1,23.79333786]
[1768345510429,0.72405104,147.2,147.12,12.64687799]
[1768345510605,12.64687799,147.19,147.12,12.64687799]
[1768345511029,0.72405104,147.2,147.13,12.64687799]
[1768345511407,0.72405104,147.16,147.1,23.79333786]
[1768345511731,0.72405104,147.14,147.09,6.7985587]
[1768345512028,0.66405106,147.14,147.09,6.7985587]
[1768345512416,12.64687799,147.13,147.08,6.79889016]
[1768345513631,6.79634785,147.14,147.0,5.87413642]
[1768345513802,6.79763442,147.11,147.0,0.2]
[1768345514005,0.72405104,147.1,147.01,6.80225834]
[1768345514225,0.72405104,147.09,147.01,36.51478218]
[1768345514426,0.72405104,147.09,147.01,23.86790419]
[1768345514630,0.72405104,147.09,147.01,36.51478218]
[1768345515014,0.72405104,147.09,147.03,12.64687799]
[1768345515431,0.72405104,147.09,147.02,12.64687799]
[1768345515605,0.72405104,147.09,147.01,6.86225832]
[1768345515807,7.52375507,147.07,147.0,7.00259797]
[1768345516729,0.72405104,147.06,147.0,7.00259797]
[1768345516905,0.71967712,147.05,147.0,0.2]
[1768345517103,0.71967712,147.0,146.92,0.05999998]
[1768345517307,12.64687799,147.0,146.92,0.05999998]
[1768345517617,25.00687799,146.99,146.92,0.05999998]
[1768345517918,12.36,147.0,146.92,0.05999998]
[1768345518101,12.64687799,146.98,146.92,0.05999998]
[1768345518302,12.36,147.0,146.92,0.05999998]
[1768345518523,12.64687799,146.98,146.92,6.866295]
[1768345518834,19.45030421,146.99,146.91,6.80688857]
[1768345519014,12.64687799,146.97,146.91,6.80688857]
[1768345519333,13.36655511,146.97,146.9,7.09728496]
[1768345519722,0.71967712,146.96,146.9,6.80728499]
[1768345520029,13.36655511,146.96,146.9,6.80728499]
[1768345520419,13.36655511,146.96,146.89,6.80781537]
[1768345521431,0.71967712,146.96,146.89,6.80781537]
[1768345521737,12.64687799,146.95,146.89,6.80781537]
[1768345522134,0.71967712,146.92,146.87,0.2]
[1768345522324,12.64687799,146.89,146.87,0.2]
[1768345522717,0.71967712,146.9,146.87,0.2]
[1768345522718,13.36655511,146.9,146.87,0.2]
[1768345523035,0.71967712,146.89,146.86,0.2]
[1768345524131,0.68967713,146.89,146.86,6.80913899]
[1768345524435,12.36,146.93,146.87,0.71999996]
[1768345524634,12.64687799,146.94,146.86,24.55215406]
[1768345524842,12.64687799,146.94,146.87,0.71999996]
[1768345525630,12.64687799,146.96,146.89,0.71999996]
[1768345526033,12.64687799,146.97,146.89,13.36687795]
[1768345526346,7.5237868,146.97,146.89,13.36687795]
[1768345526544,0.71967712,146.99,146.91,13.36687795]
[1768345526730,13.36655511,146.99,146.92,0.71999996]
[1768345527136,18.01691314,147.01,146.93,12.64687799]
[1768345527326,12.64687799,146.99,146.92,0.71999996]
[1768345527659,12.64687799,146.99,146.93,6.80596202]
[1768345527961,20.16985147,146.99,146.92,0.71999996]
[1768345528116,20.16985147,146.99,146.9,12.36]
[1768345528117,13.36655511,146.97,146.9,12.36]
[1768345528445,13.36655511,146.95,146.87,0.71999996]
[1768345528650,0.71967712,146.94,146.87,0.71999996]
[1768345530242,12.64687799,146.93,146.87,0.71999996]
[1768345530446,7.52545394,146.94,146.87,7.52858829]
[1768345530751,12.64687799,146.93,146.87,7.52858829]
[1768345531244,0.71967712,146.99,146.9,0.71999996]
[1768345531442,13.36655511,146.99,146.92,0.71999996]
[1768345531742,20.16989706,146.99,146.93,6.80596202]
[1768345531939,13.36655511,146.99,146.93,6.80596202]
[1768345532153,23.02527401,147.0,146.93,7.52596198]
[1768345532341,0.71967712,146.99,146.94,12.64687799]
[1768345532652,0.71967712,146.99,146.93,36.46774506]
[1768345533030,10.37839602,147.0,146.96,12.64687799]
[1768345533244,10.37839602,147.0,146.95,12.64687799]
[1768345533245,7.75547487,147.0,146.95,12.64687799]
[1768345533562,19.44851156,147.03,146.95,12.64687799]
[1768345533727,19.44851156,147.03,146.96,6.80457267]
[1768345534632,12.64687799,147.01,146.95,6.80496396]
[1768345534833,17.00146445,147.05,146.94,12.36]
[1768345534834,12.64687799,147.0,146.94,12.36]
[1768345535032,0.71414245,147.02,146.94,13.03785151]
[1768345535333,12.64687799,146.99,146.95,0.67785151]
[1768345535664,12.64687799,147.0,146.95,0.67785151]
[1768345536035,12.64687799,147.0,146.95,7.48281994]
[1768345536230,12.64687799,147.0,146.95,0.67785151]
[1768345536432,13.36102044,147.0,146.94,19.16532392]
[1768345537261,6.80260702,147.01,146.95,0.67785151]
[1768345537432,19.44948501,147.01,146.95,0.67785151]
[1768345538465,12.64687799,147.0,146.95,0.67785151]
[1768345538953,12.64687799,146.98,146.93,7.48343248]
[1768345539743,0.71414245,146.99,146.94,6.80538917]
[1768345539941,13.36102044,146.99,146.94,6.80538917]
[1768345540535,12.64687799,146.98,146.93,7.48363064]
[1768345540736,12.64687799,146.97,146.93,0.67785151]
[1768345540940,12.64687799,146.96,146.91,19.16680226]
[1768345541140,12.64687799,146.95,146.91,12.36]
[1768345541359,12.64687799,146.97,146.92,0.67785151]
[1768345541755,0.71414245,146.98,146.92,0.67785151]
[1768345541756,12.64687799,146.96,146.92,0.67785151]
[1768345541940,0.71414245,146.96,146.9,0.67785151]
[1768345542141,12.64687799,146.94,146.9,7.48507801]
[1768345542342,12.64687799,146.94,146.88,7.48573912]
[1768345542541,12.64687799,146.94,146.89,7.48523378]
[1768345543267,13.36102044,146.95,146.89,7.48523378]
[1768345543557,12.64687799,146.94,146.89,7.48523378]
[1768345544541,12.64687799,146.94,146.89,0.67785151]
[1768345544741,12.64687799,146.93,146.89,0.67785151]
[1768345545053,12.61687799,146.93,146.89,0.67785151]
[1768345545453,12.61687799,146.93,146.88,6.80813619]
[1768345545656,0.71414245,146.94,146.88,6.80813619]
[1768345545967,13.36102044,146.94,146.89,6.80773381]
[1768345546154,13.36102044,146.94,146.89,7.48558532]
[1768345547865,12.64687799,146.97,146.9,0.67785151]
[1768345548169,29.38832416,146.99,146.89,36.47415023]
[1768345548170,12.64687799,147.0,146.93,0.67785151]
[1768345548367,13.36102044,147.0,146.93,0.67785151]
[1768345548560,12.64687799,146.99,146.93,0.67785151]
[1768345549139,13.36102044,147.0,146.93,0.67785151]
[1768345549342,0.71414245,146.99,146.94,6.80549884]
[1768345552351,0.71414245,146.99,146.93,19.84364174]
[1768345552352,20.61326764,146.98,146.93,19.84364174]
[1768345552571,21.32741009,146.98,146.91,0.67785151]
[1768345552749,0.71414245,146.97,146.91,7.48446147]
[1768345552965,20.61326764,146.96,146.91,0.67785151]
[1768345553156,20.61326764,146.96,146.91,7.48469798]
[1768345553356,6.80457267,146.96,146.91,7.48469798]
[1768345553583,20.61326764,146.96,146.91,7.48469798]
[1768345555089,7.51841913,146.97,146.91,7.48469798]
[1768345555285,20.61326764,146.96,146.91,7.48469798]
[1768345556056,27.41791838,146.96,146.91,7.48469798]
[1768345558167,28.13158094,146.97,146.91,7.48469798]
[1768345558374,21.32741009,146.96,146.91,7.48469798]
[1768345558977,20.61326764,146.95,146.91,0.67785151]
[1768345560081,21.32741009,146.93,146.88,6.80815805]
[1768345560279,0.71414245,146.91,146.86,6.80878963]
[1768345560486,20.61326764,146.9,146.86,6.80878963]
[1768345560781,20.61326764,146.9,146.85,10.54622067]
[1768345560996,0.71414245,146.89,146.85,3.05883782]
[1768345561157,21.32741009,146.88,146.85,3.05883782]
[1768345561353,21.32741009,146.86,146.82,0.2]
[1768345561756,0.71414245,146.89,146.82,0.2]
[1768345561973,0.71414245,146.85,146.82,0.2]
[1768345562172,21.32741009,146.88,146.83,6.8103166]
[1768345562367,0.71414245,146.87,146.83,6.8103166]
[1768345562576,20.61326764,146.88,146.83,7.48816811]
[1768345563157,20.61326764,146.88,146.84,0.67785151]
[1768345563356,20.61326764,146.89,146.84,0.67785151]
[1768345563575,21.32741009,146.91,146.85,0.67785151]
[1768345563777,0.71414245,146.91,146.85,0.67785151]
[1768345564077,0.71414245,146.91,146.86,6.80920604]
[1768345565682,21.32741009,146.91,146.86,6.80920604]
[1768345565987,21.32741009,146.91,146.85,7.48745257]
[1768345565988,20.61326764,146.91,146.85,7.48745257]
[1768345566488,28.10965543,146.91,146.85,7.48745257]
[1768345567706,21.30262012,146.91,146.85,7.48745257]
[1768345568574,20.61326764,146.9,146.85,7.48745257]
[1768345568774,21.30262012,146.9,146.85,7.48745257]
[1768345569785,0.68935248,146.9,146.85,7.48669189]
[1768345571167,21.30262012,146.9,146.85,6.80960106]
[1768345571486,0.68935248,146.89,146.85,6.80960106]
[1768345571690,21.30262012,146.91,146.86,0.67709083]
[1768345572785,21.30262012,146.91,146.83,12.36]
[1768345572786,21.30262012,146.88,146.83,12.36]
[1768345573164,21.30262012,146.88,146.83,19.17057701]
[1768345574177,21.30262012,146.88,146.84,6.81007714]
[1768345574472,21.30262012,146.9,146.85,6.80966681]
[1768345574886,28.11027086,146.9,146.84,7.48707375]
[1768345575208,20.61326764,146.89,146.84,7.48707375]
[1768345575891,0.68935248,146.87,146.83,12.36]
[1768345576390,0.68935248,146.87,146.83,10.81193873]
[1768345576590,20.61326764,146.87,146.83,10.81193873]
[1768345576775,20.61326764,146.87,146.82,0.2]
[1768345576980,7.39731055,146.89,146.82,0.2]
[1768345576981,20.61326764,146.88,146.82,0.2]
[1768345577176,20.71226764,146.89,146.83,6.81054099]
[1768345577384,20.61326764,146.89,146.83,6.81054099]
[1768345577784,27.42108425,146.89,146.83,6.81054099]
[1768345577984,138.22104943,146.97,146.85,0.71228956]
[1768345578294,138.22104943,146.97,146.84,12.36]
[1768345578295,27.51684031,146.96,146.9,0.71228956]
[1768345579170,20.61326764,146.99,146.92,0.71228956]
[1768345579388,20.71226764,146.99,146.92,0.71228956]
[1768345579595,12.96935248,147.01,146.94,0.71228956]
[1768345579898,28.00498342,147.01,146.94,0.71228956]
[1768345580202,28.00498342,147.01,146.95,7.51732528]
[1768345581100,3.58200001,147.03,146.98,0.71228956]
[1768345581271,21.40262012,147.06,146.99,12.36]
[1768345581697,20.7716676,147.05,146.96,6.6801107]
[1768345581894,20.61326764,147.02,146.95,44.43089267]
[1768345582109,27.415134,147.02,146.96,12.36]
[1768345582718,20.61326764,147.01,146.96,12.36]
[1768345583276,7.38268554,147.02,146.96,12.36]
[1768345583496,20.61326764,147.01,146.96,12.36]
[1768345583879,20.61326764,147.01,146.96,19.16433061]
[1768345584374,0.57667947,147.0,146.96,12.36]
[1768345584574,0.57667947,147.0,146.96,12.18732703]
[1768345584790,0.57667947,147.0,146.96,18.99189716]
[1768345585895,7.27859314,147.02,146.96,19.70418672]
[1768345586074,20.61326764,147.01,146.96,19.70418672]
[1768345586475,7.27859314,147.02,146.96,19.70418672]
[1768345586671,20.61326764,147.01,146.96,19.70418672]
[1768345587094,12.85667947,147.04,146.97,0.71228956]
[1768345587297,12.85667947,147.04,146.98,0.71228956]
[1768345587505,33.46994711,147.04,146.98,0.71228956]
[1768345587690,40.2708316,147.04,146.98,0.71228956]
[1768345588206,20.61326764,147.03,146.98,0.71228956]
[1768345588905,33.46994711,147.04,146.98,0.71228956]
[1768345589079,33.46994711,147.04,146.99,6.80318389]
[1768345589479,20.61326764,147.03,146.99,6.80318389]
[1768345590002,0.2,147.06,147.0,0.71228956]
[1768345590229,20.61326764,147.05,146.99,6.80318389]
[1768345590502,20.61326764,147.05,146.98,6.80351295]
[1768345590503,20.61326764,147.03,146.98,6.80351295]
[1768345590894,19.38019803,147.06,146.98,44.42589747]
[1768345591093,20.61326764,147.04,146.98,23.81262983]
[1768345591782,12.679,147.06,146.98,44.42589747]
[1768345591980,19.47918302,147.06,146.98,44.42589747]
[1768345592185,20.61326764,147.05,146.99,0.71228956]
[1768345593215,20.61326764,147.05,147.0,6.80272108]
[1768345593783,20.61326764,147.04,147.0,6.80272108]
[1768345594010,20.61326764,147.04,147.0,7.51501064]
[1768345594309,20.61326764,147.04,147.0,0.71228956]
[1768345595114,20.61326764,147.05,147.0,0.71228956]
[1768345595814,20.61326764,147.05,147.0,7.51484916]
[1768345596186,12.58,147.06,147.01,0.70157784]
[1768345596510,0.2,147.06,147.03,0.70157784]
[1768345597998,0.2,147.06,147.03,7.50288456]
[1768345598399,0.2,147.06,147.03,0.70157784]
[1768345599512,0.2,147.06,147.03,0.64157785]
[1768345599995,0.2,147.06,147.03,7.4428086]
[1768345601209,20.72175781,147.05,146.98,17.0090849]
[1768345601504,20.61326764,147.05,147.0,7.50413317]
[1768345601910,20.61326764,147.04,147.0,0.70157784]
[1768345602101,20.61326764,147.04,146.98,0.70157784]
[1768345602102,20.61326764,147.02,146.98,0.70157784]
[1768345602490,20.61326764,147.03,146.98,0.70157784]
[1768345602892,12.38,147.05,146.99,0.70157784]
[1768345603193,32.99326764,147.05,147.0,0.70157784]
[1768345603607,32.99326764,147.05,147.0,7.503868]
[1768345603807,20.61326764,147.05,147.0,7.503868]
[1768345604003,20.61326764,147.04,147.0,7.503868]
[1768345604416,20.71226764,147.05,147.0,7.503868]
[1768345605004,0.099,147.05,147.0,7.503868]
[1768345605314,0.57353284,147.0,146.95,6.80459122]
[1768345605506,20.61326764,146.98,146.95,6.80459122]
[1768345605813,20.72636173,146.97,146.92,6.80605685]
[1768345606014,0.11309409,146.97,146.93,6.80594585]
[1768345606224,20.72636173,146.97,146.93,6.80594585]
[1768345606415,20.72636173,146.97,146.92,6.80629855]
[1768345606920,20.61326764,146.98,146.93,0.70157784]
[1768345607118,12.96311888,146.99,146.94,6.80538757]